[Event "Israeli Women Championship 2022"]
[Site "Yosiah Arad"]
[Date "2022.12.12"]
[Round "8.4"]
[White "Brusilovski, Lena"]
[Black "Levitan, Ronit"]
[Result "0-1"]
[ECO "C44"]
[WhiteElo "1800"]
[BlackElo "1989"]
[Annotator "TA"]
[PlyCount "54"]
[EventDate "2022.12.05"]
[EventType "tourn"]
[EventCountry "ISR"]
[SourceTitle "playchess.com"]
[Source "ChessBase"]
[SourceQuality "1"]
[TimeControl "40/5400+30:1800+30"]

{[%evp 10,54,0,-100,-88,-145,-160,-165,-144,-175,-15,-229,-230,-216,-229,-237,-218,-228,-225,-234,-237,-229,-175,-231,-231,-228,-214,-361,-364,-371,-349,-362,-373,-370,-368,-380,-363,-362,-352,-412,-414,-402,-408,-778,-392,-636,-610]} 1. e4 {[%emt 0:00:44]} e5 {[%emt 0:00:35]} 2. Nf3 {[%emt 0:00:23]} Nc6 {[%emt 0:00:06]} 3. d4 {[%emt 0:02:22]} exd4 {[%emt 0:01:05]} 4. Bc4 {[%emt 0:03:35]} Bc5 {[%emt 0:00:48]} 5. Ng5 {[%emt 0:00:36]} Nh6 {[%emt 0:00:32]} 6. Qh5 {[%emt 0:02:07]} (6. Bxf7+ $11 {remains equal.} Nxf7 7. Nxf7 Kxf7 8. Qh5+ g6 9. Qxc5) 6... Qe7 $17 {[%emt 0:00:22][%cal Od7d5] C44: Ponziani Opening and Scotch Gambit.} 7. Nxf7 {[%emt 0:03:14]} Bb4+ {[%emt 0:04:41]} ({Worse is} 7... Nxf7 8. Bxf7+ Qxf7 9. Qxc5 $17) ({Don't play} 7... Qxe4+ 8. Kd1 (8. Kf1 Nxf7 9. Qxf7+ Kd8 $14) 8... Qg4+ 9. Qxg4 Nxg4 10. Re1+ (10. Nxh8 $2 Nxf2+ 11. Ke2 Nxh1 $19) 10... Kf8 11. Nxh8 $18) 8. c3 {[%emt 0:00:39]} Nxf7 {[%emt 0:00:09] Black is clearly better.} 9. cxb4 {[%emt 0:03:26]} Nxb4 $2 {[%emt 0:16:29] [#]} ({Black should play} 9... Qxe4+ $19 10. Qe2 Qxe2+ 11. Bxe2 Nxb4) 10. Qxf7+ $146 {[%emt 0:04:59] This costs White the game.} (10. O-O) (10. O-O $11 {and White stays safe.}) ({Predecessor:} 10. O-O Nc2 11. Bg5 Qf8 12. Na3 Nxa3 13. bxa3 g6 14. Qh4 Nxg5 15. Qxg5 Qe7 16. Qd5 {1-0 (37) Hansen,J-Williams,D IECG email 2005}) 10... Qxf7 $19 {[%emt 0:00:17]} 11. Bxf7+ {[%emt 0:00:04]} Kxf7 {[%emt 0:00:09]} 12. Na3 {[%emt 0:00:40] Inhibits Nc2+.} b6 {[%emt 0:00:59]} 13. O-O {[%emt 0:01:58]} Ba6 {[%emt 0:00:43]} 14. Rd1 {[%emt 0:00:37]} c5 {[%emt 0:00:05]} 15. Bd2 {[%emt 0:01:29]} Nc6 {[%emt 0:01:16][%cal Bb4c6,Bc6e5,Be5d3][%mdl 32]} 16. Rac1 {[%emt 0:02:00]} (16. f3 $142) 16... Rhe8 {[%emt 0:01:06]} 17. f3 {[%emt 0:00:45]} Ne5 {[%emt 0:00:34]} 18. Nc2 {[%emt 0:02:13]} (18. Rb1 {was worth a try.}) 18... d5 {[%emt 0:04:20]} 19. b4 {[%emt 0:03:19]} dxe4 {[%emt 0:01:41]} 20. fxe4 {[%emt 0:00:37]} Nd3 {[%emt 0:00:27][%csl LRc1,LRe4]} 21. Rb1 {[%emt 0:00:54]} Rxe4 {[%emt 0:00:20]} 22. bxc5 {[%emt 0:01:57]} bxc5 {[%emt 0:00:31] aiming for ...Re2.} 23. Ne1 {[%emt 0:02:15]} Re2 {[%emt 0:04:02] Strongly threatening ...Nf2.} 24. Nxd3 {[%emt 0:00:49]} Bxd3 {[%emt 0:00:04]} 25. Rb7+ {[%emt 0:00:37]} Kg6 {[%emt 0:00:40] [#] And now ...Be4 would win.} 26. h4 {[%emt 0:03:03]} (26. Bc1 $142 c4 27. Rb5) 26... h5 {[%emt 0:05:09] Threatens to win with ...Be4.} 27. Rc7 $2 {[%emt 0:00:51]} (27. Bc1 c4 28. Rb5) 27... Be4 {[%emt 0:02:19] Weighted Error Value: White=0.74/Black=0.45} 0-1

[Event "Israeli Women Championship 2022"]
[Site "Yosiah Arad"]
[Date "2022.12.12"]
[Round "8.5"]
[White "Kochavi, Dana"]
[Black "Tashkinova, Sofiia"]
[Result "0-1"]
[ECO "C02"]
[WhiteElo "1928"]
[BlackElo "2006"]
[Annotator "TA"]
[PlyCount "120"]
[EventDate "2022.12.05"]
[EventType "tourn"]
[EventCountry "ISR"]
[SourceTitle "playchess.com"]
[Source "ChessBase"]
[SourceQuality "1"]
[TimeControl "40/5400+30:1800+30"]

{[%evp 12,120,0,0,0,-4,0,0,0,-7,41,35,35,40,63,56,62,43,54,46,56,32,33,39,39,0,39,41,41,-25,-24,-17,-39,-32,-27,-193,-192,-182,-163,-160,-114,-107,-107,-91,-15,-18,0,0,0,0,0,-31,-36,-95,-23,-179,-179,-602,-582,-514,-456,-29967,-29967,-29985,-576,-5739,-5690,-5618,-687,-5306,-1037,-1219,-487,-662,-648,-579,-418,-404,-383,-433,-343,-429,-422,-426,-307,-805,-777,-955,-764,-1286,-1375,-29982,-29984,-29984,-29985,-29984,-29950,-29954,-12844,-29962,-29964,-29976,-29977,-29963,-559,-5739,-5739,-2064,-1535,-29987,-29988]} 1. e4 {[%emt 0:00:01]} e6 {[%emt 0:00:07]} 2. d4 {[%emt 0:00:31]} d5 {[%emt 0:00:06]} 3. e5 {[%emt 0:00:06]} c5 {[%emt 0:00:20]} 4. c3 {[%emt 0:00:04]} Qb6 {[%emt 0:00:21]} 5. Nf3 {[%emt 0:00:06]} Nc6 {[%emt 0:00:28]} 6. Na3 {[%emt 0:00:24]} cxd4 {[%emt 0:05:05]} 7. cxd4 {[%emt 0:00:25]} Bb4+ {[%emt 0:03:38] C02: French: Advance Variation.} 8. Bd2 {[%emt 0:00:13]} a6 {[%emt 0:01:16]} (8... Nxd4 $2 9. Nxd4 Qxd4 10. Qa4+ Bd7 11. Qxb4 $18) 9. Nc2 {[%emt 0:01:25]} Bxd2+ {[%emt 0:03:26] The position is equal.} 10. Qxd2 {[%emt 0:00:32] [#]} Bd7 $146 {[%emt 0:01:57]} (10... Qxb2 $11 11. Bd3 h6) ({Predecessor:} 10... Nge7 11. Bd3 Bd7 12. O-O O-O 13. b4 Kh8 14. a4 Nf5 15. Rfe1 Rac8 16. Kh1 Nce7 {½-½ (40) Naiditsch,A (2648)-Druska,J (2503) Germany 2022}) 11. b4 $14 {[%emt 0:00:51]} f6 {[%emt 0:07:15]} 12. Bd3 {[%emt 0:08:34]} f5 {[%emt 0:05:04]} 13. a4 {[%emt 0:05:14]} Nge7 {[%emt 0:04:45]} 14. h4 {[%emt 0:02:13]} O-O {[%emt 0:05:21]} 15. O-O {[%emt 0:07:32]} h6 {[%emt 0:04:43]} 16. b5 {[%emt 1:10:19]} axb5 {[%emt 0:03:24]} 17. axb5 {[%emt 0:00:00]} Na5 {[%emt 0:00:25]} 18. Rfb1 {[%emt 0:00:00] Inhibits Nb3.} (18. Qb4 $5 {[%cal Rb4e7]} Ng6 19. Rfb1 $14) 18... Rfc8 {[%emt 0:03:35]} 19. Qb4 {[%emt 0:00:00]} Qd8 {[%emt 0:04:11]} 20. b6 {[%emt 0:00:00]} ({White should try} 20. Ne3 $14) 20... Nc4 $11 {[%emt 0:02:33]} 21. Rxa8 {[%emt 0:00:00]} Rxa8 {[%emt 0:00:08]} 22. Bxc4 {[%emt 0:00:00]} Ra4 {[%emt 0:01:37]} 23. Qb2 {[%emt 0:00:00]} dxc4 $19 {[%emt 0:03:56]} (23... Rxc4 24. Ne3 Rc6 25. g3 $15) 24. Ne3 {[%emt 0:00:00][%cal Bc2e3,Be3d1,Bd1c3][%mdl 32]} f4 {[%emt 0:06:20]} 25. Nd1 {[%emt 0:00:00]} Bc6 {[%emt 0:02:01]} (25... Nd5 $142 {Hoping for ...Rb4.} 26. Qd2 Ra3) 26. Nc3 $17 {[%emt 0:00:00]} Ra6 {[%emt 0:01:05]} 27. Qe2 {[%emt 0:00:00]} Nd5 {[%emt 0:04:27]} (27... Bd5 $17 28. Nxd5 exd5) 28. Qxc4 $11 {[%emt 0:00:00]} Rxb6 {[%emt 0:00:37]} 29. Rxb6 {[%emt 0:00:00]} Qxb6 {[%emt 0:00:09]} 30. Nxd5 {[%emt 0:00:00]} Bxd5 {[%emt 0:01:13][%mdl 4096] Endgame KQB-KQN} 31. Qc1 {[%emt 0:00:08]} Qc6 $36 {[%emt 0:02:23][%mdl 2048] Black is more active.} 32. Qxf4 {[%emt 0:00:47] [#]} (32. Qxc6 $1 $15 Bxc6 33. Ne1) 32... b5 {[%emt 0:01:06]} (32... Qa4 $1 $17 33. Qc1 b5) 33. Qe3 $2 {[%emt 0:03:18] White is now going downhill.} (33. Qd2 $1 $11 {and White is okay.}) 33... b4 $19 {[%emt 0:01:15]} 34. Ne1 {[%emt 0:03:00]} (34. Nd2) 34... b3 {[%emt 0:02:39]} 35. Qd2 {[%emt 0:00:20] Against b2} Qa4 {[%emt 0:00:15] ...Qa1 is the strong threat.} 36. Nd3 {[%emt 0:01:14]} (36. Qc3 $19 Be4 37. d5 Bxd5 38. Qc8+ Kh7 39. Qc3) 36... Qxd4 {[%emt 0:00:17]} 37. Qd1 {[%emt 0:00:35]} Qe4 {[%emt 0:00:15]} (37... Bc4 $142 38. Qb1 Qxd3 39. Qa1 Qe2 40. Qb1 Qc2 41. Qe1 b2 42. Qb4 b1=Q+ 43. Qxb1 Qxb1+ 44. Kh2 Bf1 45. h5 Qe4 46. f3 Qxe5+ 47. f4 Qe2 48. Kh3 Qxg2+ 49. Kh4 Qh3#) 38. f3 {[%emt 0:00:29]} Qd4+ {[%emt 0:01:03]} 39. Nf2 {[%emt 0:00:29]} Qxe5 {[%emt 0:00:26]} (39... Qb6 $142 40. Qb1 b2) 40. Qc1 {[%emt 0:00:29]} Qd4 {[%emt 0:00:41]} (40... b2 $142 41. Qb1 {[#]} Ba2 $1 {[%mdl 512]} 42. Qxa2 Qe1+ 43. Kh2 b1=Q 44. Qxb1 Qxb1) 41. h5 {[%emt 0:30:51]} Qc4 {[%emt 0:34:27]} (41... b2 $142 42. Qc8+ Kf7 43. Qc7+ Kf6 44. Qd8+ Kf5 45. Qf8+ Kg5) 42. Qa1 {[%emt 0:00:00]} Qc2 {[%emt 0:17:10]} 43. Nd1 {[%emt 0:00:00] Inhibits b2.} Qe2 {[%emt 0:00:00]} 44. Qd4 {[%emt 0:00:00]} Qc4 {[%emt 0:00:00]} (44... Bc4 $2 45. Nc3 Qf1+ 46. Kh2 $19) 45. Qa1 {[%emt 0:00:00]} Qh4 {[%emt 0:00:00]} 46. Qc3 {[%emt 0:00:00]} Qxh5 {[%emt 0:00:00]} 47. Ne3 {[%emt 0:00:00]} Qg5 {[%emt 0:00:00] Threatens to win with ...b2.} 48. f4 $2 {[%emt 0:00:00] Inhibits b2.} (48. Kf2) 48... Qd8 {[%emt 0:00:00] And now ...Qb6 would win.} 49. Qd4 {[%emt 0:00:00] Inhibits Qb6.} Qb8 {[%emt 0:00:00] ( -> ...b2)} 50. Nxd5 {[%emt 0:00:00]} exd5 {[%emt 0:00:00]} 51. Qxd5+ {[%emt 0:00:00] KQ-KQ} Kh8 {[%emt 0:00:00]} 52. Qd3 {[%emt 0:00:00]} b2 {[%emt 0:00:00]} ({Stronger than} 52... Qxf4 53. Qxb3 Qd4+ 54. Kf1 $17) 53. Qb1 {[%emt 0:00:00]} Qb4 {[%emt 0:00:00]} ({And not} 53... Qxf4 54. Qxb2 h5 55. Qc2 $17) 54. f5 {[%emt 0:00:00]} Qb3 {[%emt 0:00:00]} (54... Kg8 $142 55. Kf2 Qd2+ 56. Kg3 Kf8 57. Qe4 Qd6+ 58. Kh3 Qb8 59. Qb1 Qb4 60. Kg3 Qa3+ 61. Kf2 Qc5+ 62. Kf3 Qc6+ 63. Kf2 Qc1 64. Qd3 b1=Q 65. Qd8+ Kf7 66. Qd7+ Kf6 67. Qe6+ Kg5 68. Qg6+ Kf4 69. g3+ Ke4 70. Qe6+ Kd3 71. Qd5+ Kc3 72. Qc5+ Kb3 73. Qb6+ Kc2 74. Qc6+ Kd2 75. Qd6+ Qd3 76. Qf4+ Kc2 77. Qa4+ Kb1 78. Qb4+ Qb2+ 79. Qxb2+ Kxb2 80. g4 Qh3 81. Kg1 Qxg4+ 82. Kf2 Kc3 83. f6 gxf6 84. Ke3 h5 85. Kf2 Kd2 86. Kf1 Ke3 87. Ke1 Qg1#) 55. Kh2 {[%emt 0:00:00]} Kg8 {[%emt 0:00:00]} 56. g3 {[%emt 0:00:00]} Kf7 {[%emt 0:00:00]} 57. Kh3 {[%emt 0:00:00]} Qa3 {[%emt 0:00:00]} (57... Kf6 $142 58. Kg2 Qd5+ 59. Kg1 Qe5 60. Kh1 Qd5+ 61. Kg1 Qd2 62. Qe4 Kg5 63. Qh4+ Kxf5 64. Qh5+ Kf6 65. Qh4+ Kf5 66. Qh3+ Kf6 67. Qf1+ Kg6 68. Qa6+ Kh7 69. Qb7 Qe1+ 70. Kg2 b1=Q 71. Qxb1+ Qxb1 72. g4 Qd3 73. g5 Qe2+ 74. Kh1 hxg5 75. Kg1 Qd2 76. Kf1 g4 77. Kg1 g3 78. Kh1 Qh2#) 58. Qe4 {[%emt 0:00:00]} Qa2 {[%emt 0:00:00] Inhibits Qe6+.} 59. Qb7+ {[%emt 0:00:00]} Kg8 {[%emt 0:00:00]} ({Weaker is} 59... Kf6 60. Qc6+ Kxf5 61. g4+ Ke5 62. Qc7+ Kf6 63. Qf4+ Ke6 64. Qe4+ Kf7 65. Qf5+ Kg8 66. Qc8+ Kh7 67. Qf5+ Kh8 68. Qf8+ Qg8 69. Qb4 $17) 60. Qe7 {[%emt 0:00:00]} b1=Q {[%emt 0:00:00] Weighted Error Value: White=1.23/Black=0.75} 0-1

[Event "Israeli Women Championship 2022"]
[Site "Yosiah Arad"]
[Date "2022.12.13"]
[Round "9.1"]
[White "Efroimski, Marsel"]
[Black "Orian, Noga"]
[Result "1-0"]
[ECO "B23"]
[WhiteElo "2470"]
[BlackElo "1947"]
[Annotator "TA"]
[PlyCount "87"]
[EventDate "2022.12.05"]
[EventType "tourn"]
[EventCountry "ISR"]
[SourceTitle "playchess.com"]
[Source "ChessBase"]
[SourceQuality "1"]
[TimeControl "40/5400+30:1800+30"]

{[%evp 9,87,4,10,5,4,15,28,16,14,20,5,0,0,16,33,29,47,41,67,25,68,68,77,67,74,25,32,24,26,-51,-44,-64,-55,-64,-64,-68,-50,-57,0,0,7,0,34,0,22,0,55,55,42,46,57,40,43,0,0,0,77,18,268,265,256,243,224,235,229,206,480,467,789,812,1207,1184,2885,3499,2092,2092,1652,1605,29995,29996]} 1. e4 {[%emt 0:00:30]} c5 {[%emt 0:00:05]} 2. Nc3 {[%emt 0:00:02]} Nc6 {[%emt 0:00:09]} 3. Nge2 {[%emt 0:00:03]} Nd4 {[%emt 0:00:11]} 4. Nxd4 {[%emt 0:00:12]} cxd4 {[%emt 0:00:07]} 5. Nb5 {[%emt 0:00:02]} e5 $1 {[%emt 0:01:18]} 6. Qh5 {[%emt 0:00:03] B23: Closed Sicilian: Lines without g3.} d6 {[%emt 0:00:31]} 7. Bc4 {[%emt 0:00:03][%csl Gc4][%cal Rh5f7]} g6 {[%emt 0:00:32]} 8. Qf3 {[%emt 0:00:03][%csl Gc4][%cal Rf3f7] White has an edge.} Be6 {[%emt 0:00:59]} 9. Bxe6 {[%emt 0:00:04]} fxe6 {[%emt 0:00:05]} 10. Qb3 {[%emt 0:00:03]} Qd7 {[%emt 0:01:20]} 11. d3 {[%emt 0:00:27]} a6 {[%emt 0:06:07]} 12. Na3 {[%emt 0:00:04]} b5 {[%emt 0:06:07][%cal Bb7b5,Bb5b4][%mdl 32] [#]} 13. O-O $146 {[%emt 0:00:05]} ({Predecessor:} 13. Nb1 Ne7 14. a4 bxa4 15. Rxa4 Nc6 16. c3 Bg7 17. Qa2 Rc8 18. O-O Nb8 19. Ra5 {½-½ (35) Lehtinen,P (2400)-Soderberg,P (2470) Finland 2001}) 13... Bg7 {[%emt 0:00:51]} 14. c3 {[%emt 0:00:37]} dxc3 {[%emt 0:00:32]} 15. bxc3 {[%emt 0:00:11][%cal Bb2c3,Bc3c4][%mdl 32]} Ne7 {[%emt 0:00:43]} 16. c4 {[%emt 0:00:40][%cal Rc4b5]} Nc6 {[%emt 0:00:20]} 17. Be3 {[%emt 0:00:38]} (17. cxb5 $16 Nd4 18. Qb2) 17... b4 $1 $11 {[%emt 0:00:45]} 18. Nc2 {[%emt 0:01:09][%cal Oa2a3,Ba3c2,Bc2a1,Ba1b3][%mdl 32]} a5 {[%emt 0:00:23]} 19. a4 {[%emt 0:00:13]} (19. Rfb1 $11) 19... O-O {[%emt 0:01:01]} 20. Rad1 {[%emt 0:00:16]} Nd4 {[%emt 0:03:31]} 21. Bxd4 {[%emt 0:00:08]} exd4 {[%emt 0:00:07]} 22. Na1 {[%emt 0:00:09]} Rac8 {[%emt 0:07:33][%cal Od6d5]} 23. Qa2 {[%emt 0:00:08]} Rc5 {[%emt 0:03:00]} (23... e5 $15) 24. Nb3 {[%emt 0:00:05]} Rh5 {[%emt 0:00:27]} 25. f4 {[%emt 0:01:11][%cal Oc4c5]} Kh8 {[%emt 0:02:35]} 26. Ra1 {[%emt 0:00:20]} Qc7 {[%emt 0:03:31]} 27. Qe2 {[%emt 0:01:33]} Bh6 {[%emt 0:07:28]} (27... e5 $11) 28. g3 $14 {[%emt 0:04:18]} Bg7 {[%emt 0:16:32]} 29. Kg2 {[%emt 0:01:19]} Qd8 {[%emt 0:01:42]} 30. h4 {[%emt 0:00:41]} (30. Rf2 {is more complex.} Kg8 31. Qg4 Qd7 32. h3) 30... Bf6 {[%emt 0:12:54]} 31. Qf2 {[%emt 0:07:48]} e5 {[%emt 0:04:08]} 32. fxe5 {[%emt 0:00:54]} Bg7 {[%emt 0:01:15]} (32... Rxe5 $11 {remains equal.} 33. Qe2 (33. Qxd4 Ree8 $17) 33... Ree8) 33. Qe2 {[%emt 0:01:08]} (33. Qxd4 Bxe5 34. Rxf8+ Qxf8 $17) (33. Qg1 $16) 33... Bxe5 $2 {[%emt 0:01:38] Loses the game.} (33... Rxe5 $11 {and Black is okay.} 34. Rxf8+ (34. Nxd4 Ree8 $17) 34... Qxf8) 34. Rxf8+ $18 {[%emt 0:02:45]} Qxf8 {[%emt 0:00:01]} 35. Rf1 {[%emt 0:00:36]} (35. Nxa5 Bxg3 $1 36. Kxg3 Qe7 $11) 35... Qe7 {[%emt 0:02:55][%cal Oe5g3] Hoping for ...Bxg3!} 36. Qf2 {[%emt 0:00:48] Threatens to win with c5.} (36. Nxa5 {[#]} Bxg3 $1 37. Qg4 Rxa5 $15) 36... Bg7 {[%emt 0:03:30]} 37. Qf7 $40 {[%emt 0:02:54][%mdl 128] Black is in trouble.} (37. Nxd4 $6 Rc5 $16) 37... Qd8 {[%emt 0:01:35]} (37... Re5 38. Nxd4 Bh6) 38. Qa7 {[%emt 0:02:33]} g5 {[%emt 0:05:31]} (38... Qe8 $142 39. Nxd4 Rc5) 39. Nxd4 {[%emt 0:01:20]} Qg8 {[%emt 0:02:01] Prevents Ne6.} 40. Nf5 {[%emt 0:01:07] Threatening mate with Nxg7.} Be5 {[%emt 0:05:51] [#]} 41. Nxd6 $1 {[%emt 0:31:30][%mdl 512]} Bxd6 {[%emt 0:01:40]} 42. Qd4+ {[%emt 0:00:00]} (42. Qxa5 gxh4 43. Rf5 Qxg3+ 44. Kf1 Qxd3+ 45. Kg1 Qd4+ 46. Kf1 Qxc4+ 47. Kf2 Bc5+ 48. Qxc5 Qxc5+ 49. Rxc5 Rxc5 50. Kf3 b3 51. Ke3 b2 52. Kd4 Ra5 53. Kd3 b1=Q+ 54. Kd4 Qb3 55. e5 Rd5+ 56. Ke4 Qd3+ 57. Kf4 Rd4+ 58. Kg5 Qg6#) 42... Qg7 {[%emt 0:00:17]} 43. Qxd6 {[%emt 0:00:00] Rf8+ would kill now.} Qb2+ {[%emt 0:01:07]} 44. Kg1 {[%emt 0:00:00] Weighted Error Value: White=0.15 (very precise) /Black=0.44} 1-0

[Event "Israeli Women Championship 2022"]
[Site "Yosiah Arad"]
[Date "2022.12.13"]
[Round "9.3"]
[White "Tashkinova, Sofiia"]
[Black "Kluchik, Julia"]
[Result "1-0"]
[ECO "B30"]
[WhiteElo "2006"]
[BlackElo "1887"]
[Annotator "TA"]
[PlyCount "53"]
[EventDate "2022.12.05"]
[EventType "tourn"]
[EventCountry "ISR"]
[SourceTitle "playchess.com"]
[Source "ChessBase"]
[SourceQuality "1"]
[TimeControl "40/5400+30:1800+30"]

{[%evp 9,53,17,61,75,68,58,68,75,73,37,155,163,159,167,221,207,217,166,192,205,205,132,131,131,197,187,237,243,245,232,447,443,757,743,817,815,812,801,767,781,1437,1388,29997,29996,29996,29997]} 1. e4 {[%emt 0:00:02]} c5 {[%emt 0:00:10]} 2. Nf3 {[%emt 0:00:06]} Nc6 {[%emt 0:00:05]} 3. Bb5 {[%emt 0:00:21]} e6 {[%emt 0:00:19]} 4. O-O {[%emt 0:00:14]} Nge7 {[%emt 0:00:19]} 5. Re1 {[%emt 0:00:47]} d5 {[%emt 0:01:38]} 6. exd5 {[%emt 0:02:25] B30: Sicilian: 2...Nc6 3 Bb5, lines without ...g6.} Nxd5 {[%emt 0:00:53]} 7. d4 {[%emt 0:01:11]} a6 {[%emt 0:05:20]} 8. Bxc6+ {[%emt 0:05:43] White is slightly better.} bxc6 {[%emt 0:00:04]} 9. Ne5 {[%emt 0:01:10] [#]} Bd7 $146 {[%emt 0:28:32]} (9... cxd4 10. Qxd4 (10. Nxc6 Qc7) 10... Bb7) (9... cxd4 $1 $14 10. Qxd4 (10. Nxc6 Qc7 $11) 10... Qc7) ({Predecessor:} 9... Qc7 10. c4 Nf6 11. Bf4 Qb6 12. d5 cxd5 13. Qa4+ Bd7 14. Nxd7 Nxd7 15. Nc3 Bd6 16. Nxd5 {1-0 (30) Barle,J (2415)-Pahor,M (2115) Ljubljana 1998}) 10. c4 $16 {[%emt 0:05:07]} Nf6 {[%emt 0:03:07]} 11. Bg5 {[%emt 0:05:13] White is much more active. The black rooks are badly placed.} Be7 {[%emt 0:23:24]} (11... h6 $142) 12. dxc5 $18 {[%emt 0:04:45]} h6 {[%emt 0:00:24]} 13. Be3 {[%emt 0:01:56]} ({But not} 13. Bxf6 $6 gxf6 14. Nd3 e5 $16) 13... O-O {[%emt 0:00:56]} 14. Nc3 {[%emt 0:01:35]} Qc7 {[%emt 0:02:12]} 15. Bd4 {[%emt 0:03:10]} (15. Bf4) 15... Rfd8 {[%emt 0:00:57]} 16. Qe2 {[%emt 0:05:00]} Bc8 {[%emt 0:07:23]} (16... Nh7 17. Rad1 Nf8) (16... Be8 $16) 17. Rad1 {[%emt 0:02:38][%cal Ba1d1,Bd1d4,Bd4d3,Bd3d7][%mdl 32]} Rxd4 {[%emt 0:02:33]} (17... Bd7 $142 18. Na4 Be8) 18. Rxd4 {[%emt 0:00:32] Threatens to win with Red1.} Bxc5 {[%emt 0:00:02]} 19. Rd3 {[%emt 0:03:33]} Bb7 $2 {[%emt 0:02:14]} (19... Bd6 {was necessary.} 20. g3 Rb8) 20. Red1 {[%emt 0:02:42]} a5 {[%emt 0:09:43]} (20... Re8 21. Rd7 Nxd7 22. Rxd7 Qb6) (20... Re8 $142 21. Rd7 Nxd7 22. Rxd7 Qb6) 21. Nd7 {[%emt 0:01:24] [#] Strongly threatening Nxf6+.} Be7 {[%emt 0:01:02]} 22. Nxf6+ {[%emt 0:01:00]} Bxf6 {[%emt 0:00:02]} 23. Rd7 {[%emt 0:02:41]} Qb6 {[%emt 0:01:22]} 24. Ne4 {[%emt 0:00:49] White wants to mate with Nxf6+.} Be5 {[%emt 0:08:00]} 25. Qh5 {[%emt 0:01:24][%csl LRe5,LRf7] [#] aiming for c5.} Qxb2 {[%emt 0:01:12]} 26. Qxf7+ {[%emt 0:00:56]} Kh7 {[%emt 0:00:15]} 27. Ng5+ {[%emt 0:00:36] Weighted Error Value: White=0.10 (very precise) /Black=0.81} 1-0

[Event "Israeli Women Championship 2022"]
[Site "Yosiah Arad"]
[Date "2022.12.13"]
[Round "9.4"]
[White "Reprun, Nadejda"]
[Black "Kochavi, Dana"]
[Result "1/2-1/2"]
[ECO "B12"]
[WhiteElo "1979"]
[BlackElo "1928"]
[Annotator "TA"]
[PlyCount "41"]
[EventDate "2022.12.05"]
[EventType "tourn"]
[EventCountry "ISR"]
[SourceTitle "playchess.com"]
[Source "ChessBase"]
[SourceQuality "1"]
[TimeControl "40/5400+30:1800+30"]

{[%evp 11,41,25,39,16,42,0,32,8,16,24,37,27,29,12,11,9,14,17,26,18,12,0,47,0,16,-61,-41,-35,-45,-42,-33,-60]} 1. e4 {[%emt 0:00:01]} c6 {[%emt 0:00:09]} 2. d4 {[%emt 0:00:03]} d5 {[%emt 0:00:04]} 3. e5 {[%emt 0:00:02]} Bf5 {[%emt 0:00:07]} 4. Nf3 {[%emt 0:00:03]} e6 {[%emt 0:00:11]} 5. Be2 {[%emt 0:00:04]} Nd7 {[%emt 0:00:14]} 6. O-O {[%emt 0:00:25]} Bg6 {[%emt 0:00:06]} 7. c4 {[%emt 0:01:49] B12: Caro-Kann: Advance Variation.} Ne7 {[%emt 0:01:19]} 8. Nc3 {[%emt 0:04:13]} Nf5 {[%emt 0:04:53]} 9. Bg5 {[%emt 0:12:23] White is slightly better.} Be7 {[%emt 0:01:40]} 10. Bxe7 {[%emt 0:03:48] [#]} Qxe7 $146 {[%emt 0:00:24]} ({Predecessor:} 10... Nxe7 11. Qb3 Qb6 12. Qa3 Qd8 13. cxd5 exd5 14. e6 fxe6 15. Ng5 Nf8 16. Bg4 Nf5 {½-½ (69) Belis,R (2121)-Prielozny,S (2167) Slovakia 2010}) 11. cxd5 {[%emt 0:05:31]} cxd5 {[%emt 0:02:52]} 12. h3 {[%emt 0:03:45]} a6 {[%emt 0:01:41]} 13. a4 {[%emt 0:01:43]} O-O {[%emt 0:00:46]} 14. a5 {[%emt 0:02:58]} Nb8 {[%emt 0:15:27]} 15. Qd2 {[%emt 0:01:16]} ({But not} 15. g4 Nh4 $15) 15... Nc6 {[%emt 0:00:35]} 16. Na4 {[%emt 0:05:18]} Nh4 {[%emt 0:10:01]} (16... Nh6 $11 {is superior.}) 17. Nb6 {[%emt 0:03:51]} (17. Nxh4 $1 $14 Qxh4 18. f4) 17... Rad8 {[%emt 0:01:10]} 18. Rfc1 {[%emt 0:03:15]} (18. Nxh4 $11 Qxh4 19. f4) 18... Nxf3+ {[%emt 0:02:27] Black is slightly better.} 19. Bxf3 {[%emt 0:00:02]} f6 {[%emt 0:01:12]} 20. exf6 $1 {[%emt 0:04:18]} Qxf6 {[%emt 0:01:29]} 21. Rd1 {[%emt 0:01:06] Weighted Error Value: White=0.20 (precise) /Black=0.13 (very precise)} 1/2-1/2

[Event "Israeli Women Championship 2022"]
[Site "Yosiah Arad"]
[Date "2022.12.13"]
[Round "9.5"]
[White "Ovechkin, Lilia"]
[Black "Brusilovski, Lena"]
[Result "1/2-1/2"]
[WhiteElo "1680"]
[BlackElo "1800"]
[Annotator "NA RC"]
[PlyCount "19"]
[EventDate "2022.12.05"]
[EventType "tourn"]
[EventCountry "ISR"]
[SourceTitle "playchess.com"]
[Source "ChessBase"]
[SourceQuality "1"]
[TimeControl "40/5400+30:1800+30"]

1. d4 {[%emt 1:31:00]} d6 {[%emt 0:00:30]} 2. e4 {[%emt 0:00:00]} f5 {[%emt 0:01:12]} 3. Nc3 {[%emt 0:00:00]} fxe4 {[%emt 0:01:00]} 4. Nxe4 {[%emt 0:00:00]} Bf5 {[%emt 0:00:50]} 5. Bd3 {[%emt 0:00:00]} e6 {[%emt 0:01:27]} 6. Ng3 {[%emt 0:00:00]} Bxd3 {[%emt 0:01:05]} 7. Qxd3 {[%emt 0:00:00]} Qd7 {[%emt 0:01:23]} 8. Bd2 {[%emt 0:00:00]} Nc6 {[%emt 0:00:49]} 9. Nf3 {[%emt 0:00:00]} Nf6 {[%emt 0:02:02] [#]} 10. h3 $14 {[%emt 0:00:00]} ({White should try} 10. O-O $1 $16) 1/2-1/2